bitfinex/quotes_SOLUSD_20241218
["timestamp","ask_amount","ask_price","bid_price","bid_amount"]
[1734537276111,1.1501,217.36,217.3,13.96710937]
[1734537277299,1.1501,217.36,217.31,13.96710937]
[1734537277912,1.1501,217.36,217.3,13.96710937]
[1734537278090,13.96710937,217.37,217.3,13.96710937]
[1734537278290,13.96710937,217.36,217.29,13.96710937]
[1734537279212,13.96710937,217.35,217.28,13.96710937]
[1734537280610,13.96710937,217.35,217.29,13.96710937]
[1734537281193,13.96710937,217.35,217.28,13.96710937]
[1734537281902,15.11730937,217.36,217.29,13.96710937]
[1734537282098,13.96710937,217.37,217.3,13.96710937]
[1734537282414,13.96710937,217.36,217.29,13.96710937]
[1734537282597,13.96710937,217.35,217.28,13.96710937]
[1734537285219,15.11730937,217.36,217.29,13.96710937]
[1734537286053,13.96710937,217.37,217.3,13.96710937]
[1734537286317,13.96710937,217.4,217.33,13.96710937]
[1734537286521,15.11680937,217.43,217.35,13.96710937]
[1734537287108,15.11680937,217.43,217.36,13.96710937]
[1734537287305,15.11680937,217.43,217.35,13.96710937]
[1734537287511,15.11680937,217.43,217.36,13.96710937]
[1734537287710,1.1497,217.43,217.38,13.96710937]
[1734537289414,13.96710937,217.46,217.38,13.96710937]
[1734537290725,1.1496,217.47,217.34,1.5159]
[1734537290726,13.96710937,217.48,217.4,13.96710937]
[1734537290923,13.96710937,217.5,217.42,13.96710937]
[1734537291729,20.0,217.48,217.42,13.96710937]
[1734537292032,7.3643,217.51,217.39,13.96710937]
[1734537292211,13.96710937,217.46,217.38,13.96710937]
[1734537292404,7.3643,217.51,217.38,13.96710937]
[1734537292405,13.96710937,217.45,217.38,13.96710937]
[1734537292613,13.96710937,217.44,217.37,13.96710937]
[1734537292838,13.96710937,217.43,217.36,13.96710937]
[1734537293025,13.96710937,217.42,217.35,13.96710937]
[1734537293336,13.96710937,217.42,217.34,15.48300937]
[1734537294945,13.96710937,217.42,217.35,13.96710937]
[1734537295437,13.96710937,217.43,217.36,13.96710937]
[1734537295638,13.96710937,217.42,217.34,13.96710937]
[1734537296440,15.11680937,217.44,217.36,13.96710937]
[1734537296605,13.96710937,217.46,217.39,13.96710937]
[1734537297118,13.96710937,217.47,217.39,13.96710937]
[1734537297839,13.96710937,217.46,217.39,13.96710937]
[1734537298042,13.96710937,217.45,217.38,13.96710937]
[1734537298742,13.96710937,217.42,217.34,13.96710937]
[1734537299620,13.96710937,217.43,217.35,13.96710937]
[1734537299821,13.96710937,217.43,217.36,13.96710937]
[1734537300238,13.96710937,217.43,217.35,13.96710937]
[1734537300544,15.11690937,217.43,217.35,13.96710937]
[1734537301946,13.96710937,217.42,217.35,13.96710937]
[1734537302123,13.96710937,217.43,217.36,13.96710937]
[1734537302946,13.96710937,217.41,217.34,13.96710937]
[1734537303250,13.96710937,217.41,217.28,7.7741]
[1734537303251,13.96710937,217.35,217.28,13.96710937]
[1734537303422,13.96710937,217.34,217.27,13.96710937]
[1734537303843,13.96710937,217.35,217.28,13.96710937]
[1734537304566,13.96710937,217.35,217.27,13.96710937]
[1734537304734,13.96710937,217.34,217.27,13.96710937]
[1734537305048,13.96710937,217.33,217.26,13.96710937]
[1734537306331,13.96710937,217.31,217.24,13.96710937]
[1734537306532,2.2999,217.4,217.23,2.68]
[1734537306533,13.96710937,217.29,217.23,2.68]
[1734537306724,13.96710937,217.28,217.22,0.5615673]
[1734537307130,13.96710937,217.26,217.22,0.5615673]
[1734537307733,13.96710937,217.25,217.22,0.5615673]
[1734537308150,13.96710937,217.24,217.22,0.5615673]
[1734537308473,13.96710937,217.23,217.22,0.5615673]
[1734537308634,37.74399337,217.23,217.22,0.5615673]
[1734537309023,37.74399337,217.23,217.13,15.51000937]
[1734537309024,37.74399337,217.23,217.12,13.96710937]
[1734537309351,13.96710937,217.19,217.12,13.96710937]
[1734537309554,13.96710937,217.18,217.11,13.96710937]
[1734537309751,13.96710937,217.17,217.1,13.96710937]
[1734537309953,13.96710937,217.16,217.09,13.96710937]
[1734537310132,13.96710937,217.15,217.08,13.96710937]
[1734537310335,13.96710937,217.14,217.06,15.54020937]
[1734537310557,13.96710937,217.13,217.06,13.96710937]
[1734537312457,13.96710937,217.11,217.04,13.96710937]
[1734537312869,13.96710937,217.13,217.06,13.96710937]
[1734537313176,13.96710937,217.12,217.05,13.96710937]
[1734537313338,13.96710937,217.09,217.02,13.96710937]
[1734537313773,13.96710937,217.11,217.04,13.96710937]
[1734537314581,13.96710937,217.09,217.02,13.96710937]
[1734537314778,13.96710937,217.08,217.01,1.5288]
[1734537315068,13.96710937,217.08,217.01,15.49590937]
[1734537315246,13.96710937,217.08,217.0,14.52867667]
[1734537315453,13.96710937,217.05,217.0,0.5615673]
[1734537315854,13.96710937,217.04,217.0,0.5615673]
[1734537316343,13.96710937,217.03,217.0,0.5615673]
[1734537317258,13.96710937,217.04,217.0,0.5615673]
[1734537317456,13.96710937,217.05,217.0,0.5615673]
[1734537318042,13.96710937,217.04,217.0,0.5615673]
[1734537319479,13.96710937,217.05,217.0,0.5615673]
[1734537319659,13.96710937,217.04,217.0,0.5615673]
[1734537320521,1.1515,217.11,217.03,13.96710937]
[1734537320810,15.11860937,217.11,217.04,13.96710937]
[1734537321015,15.11860937,217.11,217.03,13.96710937]
[1734537321167,13.96710937,217.1,217.03,13.96710937]
[1734537321488,13.96710937,217.08,217.01,13.96710937]
[1734537321702,13.96710937,217.06,217.0,0.5615673]
[1734537322074,13.96710937,217.01,217.0,0.5615673]
[1734537322410,13.96710937,217.03,217.0,0.5615673]
[1734537323478,13.96710937,217.05,217.0,0.5615673]
[1734537323812,15.11880937,217.06,217.0,0.5615673]
[1734537324401,13.96710937,217.02,217.0,0.5615673]
[1734537324619,13.96710937,217.01,217.0,0.5615673]
[1734537325482,13.96710937,217.02,217.0,0.5615673]
[1734537325702,20.0,217.07,217.0,0.5615673]
[1734537325703,13.96710937,217.01,217.0,0.5615673]
[1734537326071,37.74399337,217.01,217.0,0.5615673]
[1734537326266,23.776884,217.0,216.9,20.61670937]
[1734537326572,23.776884,217.0,216.91,15.61620937]
[1734537326908,13.96710937,217.0,216.93,13.96710937]
[1734537327428,13.96710937,216.99,216.91,15.61620937]
[1734537328129,13.96710937,216.99,216.92,13.96710937]
[1734537329524,13.96710937,216.99,216.91,15.61620937]
[1734537330330,13.96710937,216.99,216.83,1.6301]
[1734537330487,15.11920937,216.98,216.9,13.96710937]
[1734537330828,13.96710937,216.97,216.9,13.96710937]
[1734537331163,15.11920937,216.98,216.9,13.96710937]
[1734537331788,13.96710937,216.97,216.9,13.96710937]
[1734537332524,13.96710937,216.96,216.89,13.96710937]
[1734537332719,13.96710937,216.96,216.88,13.96710937]
[1734537332926,15.11920937,216.98,216.91,13.96710937]
[1734537333108,20.0,217.0,216.92,13.96710937]
[1734537333109,13.96710937,216.99,216.92,13.96710937]
[1734537333310,20.0,217.0,216.93,13.96710937]
[1734537333487,33.96710937,217.0,216.92,13.96710937]
[1734537334123,13.96710937,216.99,216.92,13.96710937]
[1734537334634,13.96710937,217.0,216.93,13.96710937]
[1734537334937,15.11910937,217.02,216.95,13.96710937]
[1734537335240,13.96710937,217.03,216.95,13.96710937]
[1734537335444,13.96710937,217.05,216.98,13.96710937]
[1734537335742,13.96710937,217.07,217.0,13.96710937]
[1734537336108,13.96710937,217.09,217.01,13.96710937]
[1734537336307,15.11860937,217.1,217.03,13.96710937]
[1734537336623,13.96710937,217.09,217.02,13.96710937]
[1734537336823,13.96710937,217.08,217.01,13.96710937]
[1734537337037,13.96710937,217.08,217.0,13.96710937]
[1734537338242,13.96710937,217.06,216.99,13.96710937]
[1734537339141,15.11870937,217.08,217.01,13.96710937]
[1734537340541,15.06330011,217.08,217.01,13.96710937]
[1734537340755,13.96710937,217.11,217.04,13.96710937]
[1734537341241,13.96710937,217.11,217.03,13.96710937]
[1734537341450,13.96710937,217.1,217.03,13.96710937]
[1734537341749,13.96710937,217.11,217.03,13.96710937]
[1734537344019,1.6378,217.18,217.07,13.96710937]
[1734537344239,1.1511,217.19,217.12,13.96710937]
[1734537345844,13.96710937,217.19,217.11,13.96710937]
[1734537346212,13.96710937,217.17,217.11,13.96710937]
[1734537346415,13.96710937,217.17,217.09,13.96710937]
[1734537346818,13.96710937,217.19,217.12,13.96710937]
[1734537347003,1.1509,217.22,217.12,13.96710937]
[1734537347209,13.96710937,217.21,217.13,13.96710937]
[1734537347633,13.96710937,217.2,217.13,13.96710937]
[1734537348133,13.96710937,217.21,217.13,13.96710937]
[1734537348427,13.96710937,217.19,217.12,13.96710937]
[1734537349034,15.11800937,217.22,217.14,13.96710937]
[1734537349214,13.96710937,217.19,217.12,13.96710937]
[1734537350244,13.96710937,217.23,217.15,13.96710937]
[1734537350929,13.96710937,217.22,217.15,13.96710937]
[1734537351532,13.96710937,217.21,217.14,13.96710937]
[1734537351737,13.96710937,217.21,217.09,0.81619802]
[1734537351738,13.96710937,217.19,217.12,13.96710937]
[1734537352238,13.96710937,217.21,217.14,13.96710937]
[1734537352437,13.96710937,217.22,217.14,13.96710937]
[1734537353690,13.96710937,217.21,217.14,13.96710937]
[1734537356857,3.94556214,217.27,217.18,13.96710937]
[1734537357051,20.14550937,217.29,217.22,13.96710937]
[1734537357231,6.1784,217.29,217.23,13.96710937]
[1734537357430,13.96710937,217.29,217.22,13.96710937]
[1734537357636,6.0687,217.34,217.23,13.96710937]
[1734537357637,13.96710937,217.3,217.23,13.96710937]
[1734537358356,15.11750937,217.31,217.23,13.96710937]
[1734537358747,13.96710937,217.26,217.18,13.96710937]
[1734537358942,13.96710937,217.26,217.19,13.96710937]
[1734537359144,13.96710937,217.29,217.21,13.96710937]
[1734537359351,13.96710937,217.29,217.22,13.96710937]
[1734537359737,13.96710937,217.3,217.23,13.96710937]
[1734537359934,35.11750937,217.31,217.23,13.96710937]
[1734537360138,13.96710937,217.3,217.23,13.96710937]
[1734537360366,13.96710937,217.3,217.22,13.96710937]
[1734537360552,13.96710937,217.29,217.21,13.96710937]
[1734537360747,1.1504,217.31,217.22,13.96710937]
[1734537360748,13.96710937,217.3,217.22,13.96710937]
[1734537360949,13.96710937,217.32,217.25,13.96710937]
[1734537361236,6.0687,217.34,217.27,13.96710937]
[1734537361237,13.96710937,217.34,217.27,13.96710937]
[1734537361388,13.96710937,217.37,217.29,13.96710937]
[1734537361682,13.96710937,217.37,217.3,13.96710937]
[1734537362053,13.96710937,217.38,217.3,13.96710937]
[1734537362484,13.96710937,217.36,217.29,13.96710937]
[1734537362686,13.96710937,217.34,217.26,15.59890937]
[1734537362887,13.96710937,217.37,217.29,13.96710937]
[1734537363088,13.96710937,217.39,217.32,13.96710937]
[1734537363257,13.96710937,217.4,217.33,13.96710937]
[1734537363965,13.96710937,217.41,217.34,13.96710937]
[1734537364186,13.96710937,217.4,217.33,13.96710937]
[1734537364377,13.96710937,217.39,217.32,13.96710937]
[1734537365795,13.96710937,217.37,217.3,13.96710937]
[1734537365993,13.96710937,217.35,217.28,13.96710937]
[1734537366194,13.96710937,217.32,217.25,13.96710937]
[1734537366398,13.96710937,217.33,217.26,13.96710937]
[1734537366702,13.96710937,217.34,217.27,13.96710937]
[1734537366998,20.0,217.33,217.29,13.96710937]
[1734537368194,20.0,217.35,217.31,13.96710937]
[1734537368395,15.11700937,217.4,217.33,13.96710937]
[1734537369100,13.96710937,217.38,217.31,13.96710937]
[1734537369400,1.1499,217.4,217.34,13.96710937]
[1734537369579,13.96710937,217.41,217.34,13.96710937]
[1734537369892,13.96710937,217.47,217.26,0.81569591]
[1734537369893,1.6428,217.46,217.4,13.96710937]
[1734537370071,13.96710937,217.47,217.4,13.96710937]
[1734537370271,15.11660937,217.48,217.41,13.96710937]
[1734537370878,13.96710937,217.46,217.39,13.96710937]
[1734537371281,13.96710937,217.44,217.37,13.96710937]
[1734537371915,13.96710937,217.43,217.36,13.96710937]
[1734537372281,9.14201766,217.49,217.34,13.96710937]
[1734537372282,13.96710937,217.41,217.34,13.96710937]
[1734537372503,13.96710937,217.43,217.36,13.96710937]
[1734537372708,13.96710937,217.44,217.36,13.96710937]
[1734537372904,13.96710937,217.42,217.34,13.96710937]
[1734537373295,13.96710937,217.41,217.34,13.96710937]
[1734537373489,13.96710937,217.37,217.3,13.96710937]
[1734537373912,13.96710937,217.39,217.32,13.96710937]
[1734537374196,13.96710937,217.39,217.28,7.5953]
[1734537374197,13.96710937,217.37,217.3,13.96710937]
[1734537374405,13.96710937,217.37,217.29,13.96710937]
[1734537374908,13.96710937,217.34,217.26,13.96710937]
[1734537375108,13.96710937,217.33,217.26,13.96710937]
[1734537375315,13.96710937,217.34,217.26,13.96710937]
[1734537375702,13.96710937,217.36,217.29,13.96710937]
[1734537376011,20.20230937,217.38,217.31,13.96710937]
[1734537376256,1.1499,217.4,217.34,13.96710937]
[1734537376387,1.1499,217.4,217.35,13.96710937]
[1734537376922,6.2352,217.44,217.27,0.69006143]
[1734537376923,20.20230937,217.44,217.36,13.96710937]
[1734537377212,1.1497,217.44,217.39,13.96710937]
[1734537377389,1.1497,217.44,217.39,13.86710937]
[1734537377591,1.1497,217.44,217.38,13.96710937]
[1734537378008,1.1497,217.44,217.39,13.96710937]
[1734537378218,15.11660937,217.48,217.41,13.96710937]
[1734537378389,13.96710937,217.5,217.42,13.96710937]
[1734537378691,13.96710937,217.5,217.43,13.96710937]
[1734537378884,13.96710937,217.48,217.41,13.96710937]
[1734537379091,13.96710937,217.47,217.4,13.96710937]
[1734537379294,13.96710937,217.49,217.42,13.96710937]
[1734537379915,13.96710937,217.48,217.41,13.96710937]
[1734537380125,13.96710937,217.48,217.4,13.96710937]
[1734537380898,1.1494,217.49,217.33,6.5529]
[1734537380899,13.96710937,217.42,217.33,6.5529]
[1734537381120,13.96710937,217.41,217.33,13.96710937]
[1734537382127,13.96710937,217.42,217.34,13.96710937]
[1734537382531,13.96710937,217.43,217.35,13.96710937]
[1734537382702,13.96710937,217.42,217.34,13.96710937]
[1734537383333,13.96710937,217.41,217.34,13.96710937]
[1734537383647,13.96710937,217.41,217.33,13.96710937]
[1734537383805,13.96710937,217.38,217.31,15.63330937]
[1734537384016,13.96710937,217.36,217.29,13.96710937]
[1734537384320,13.96710937,217.32,217.26,1.6353]
[1734537384633,13.96710937,217.3,217.23,13.96710937]
[1734537384953,13.96710937,217.32,217.24,13.96710937]
[1734537385451,23.776884,217.36,217.26,13.96710937]
[1734537385621,13.96710937,217.38,217.3,13.96710937]
[1734537385933,13.96710937,217.37,217.3,13.96710937]
[1734537386319,22.354219,217.37,217.29,22.354219]
[1734537386515,22.354219,217.37,217.3,22.354219]
[1734537387032,22.354219,217.37,217.29,22.354219]
[1734537387912,22.354219,217.39,217.32,22.354219]
[1734537388117,22.354219,217.4,217.32,22.354219]
[1734537389152,22.354219,217.39,217.31,22.354219]
[1734537389615,22.354219,217.39,217.32,22.354219]
[1734537389819,22.354219,217.38,217.31,22.354219]
[1734537390037,22.354219,217.36,217.29,22.354219]
[1734537390240,22.354219,217.35,217.27,27.054219]
[1734537390736,22.354219,217.34,217.27,4.7]
[1734537391040,22.354219,217.33,217.26,22.354219]
[1734537391541,22.354219,217.34,217.26,22.354219]
[1734537392055,22.354219,217.34,217.27,22.354219]
[1734537392526,22.354219,217.36,217.28,22.354219]
[1734537392841,22.354219,217.36,217.29,22.354219]
[1734537393342,22.354219,217.37,217.29,22.354219]
[1734537394039,22.354219,217.37,217.22,0.81578546]
[1734537394040,22.354219,217.37,217.3,22.354219]
[1734537395351,46.131103,217.38,217.3,22.354219]
[1734537395548,22.354219,217.39,217.32,22.354219]
[1734537396060,22.354219,217.39,217.31,22.354219]
[1734537396431,22.354219,217.39,217.32,22.354219]
[1734537397122,22.354219,217.38,217.31,22.354219]
[1734537398864,22.354219,217.4,217.32,22.354219]
[1734537399155,22.354219,217.39,217.32,22.354219]
[1734537400255,22.354219,217.4,217.32,22.354219]
[1734537400558,23.504019,217.43,217.35,22.354219]
[1734537401072,22.354219,217.43,217.36,22.354219]
[1734537401359,22.354219,217.47,217.4,22.354219]
[1734537401534,22.354219,217.48,217.41,22.354219]
[1734537401954,22.354219,217.47,217.39,22.354219]
[1734537402158,22.354219,217.44,217.36,27.154219]
[1734537402458,22.354219,217.4,217.32,22.354219]
[1734537402637,22.354219,217.39,217.32,22.354219]
[1734537402836,22.354219,217.38,217.31,24.004219]
[1734537403039,22.354219,217.38,217.32,4.8]
[1734537403338,22.354219,217.39,217.32,27.154219]
[1734537403660,22.354219,217.39,217.32,22.354219]
[1734537404536,1.1499,217.41,217.34,22.354219]
[1734537404738,22.354219,217.42,217.35,22.354219]
[1734537404964,22.354219,217.43,217.36,22.354219]
[1734537405139,1.1497,217.44,217.37,22.354219]
[1734537405456,23.503719,217.47,217.39,22.354219]
[1734537405966,23.503719,217.47,217.4,22.354219]
[1734537406142,22.354219,217.5,217.42,22.354219]
[1734537406459,23.503519,217.51,217.44,22.354219]
[1734537406967,22.354219,217.52,217.45,22.354219]
[1734537407264,0.5615673,217.54,217.47,22.354219]
[1734537407557,22.354219,217.53,217.46,22.354219]
[1734537408367,22.354219,217.52,217.45,22.354219]
[1734537408661,22.354219,217.48,217.41,22.354219]
[1734537408965,22.354219,217.48,217.4,22.354219]
[1734537409557,22.354219,217.47,217.4,22.354219]
[1734537409735,22.354219,217.48,217.4,22.354219]
[1734537411470,23.503619,217.49,217.42,22.354219]
[1734537411663,22.354219,217.48,217.4,22.354219]
[1734537412536,22.354219,217.48,217.37,1.5459]
[1734537412537,22.354219,217.48,217.41,22.354219]
[1734537412890,1.1493,217.53,217.42,22.354219]
[1734537412891,22.354219,217.49,217.42,22.354219]
[1734537413463,22.354219,217.46,217.38,22.479709]
[1734537414168,22.354219,217.47,217.4,22.354219]
[1734537414472,22.354219,217.5,217.42,22.354219]
[1734537415635,1.1493,217.52,217.42,22.354219]
[1734537415636,22.354219,217.49,217.42,22.354219]
[1734537416862,22.354219,217.47,217.39,22.354219]
[1734537417065,22.354219,217.46,217.39,22.354219]
[1734537417637,22.354219,217.46,217.38,22.354219]
[1734537417863,22.354219,217.45,217.37,22.354219]
[1734537418069,22.354219,217.45,217.38,22.354219]
[1734537418365,22.354219,217.46,217.39,22.354219]
[1734537419056,1.1496,217.47,217.41,22.354219]
[1734537419255,22.354219,217.49,217.42,22.354219]
[1734537420346,22.354219,217.53,217.45,22.354219]
[1734537420667,22.354219,217.53,217.46,22.354219]
[1734537420834,22.354219,217.53,217.45,22.354219]
[1734537421039,22.354219,217.5,217.43,22.354219]
[1734537421235,22.354219,217.47,217.4,22.354219]
[1734537421442,22.354219,217.44,217.37,22.354219]
[1734537421967,22.354219,217.45,217.38,22.354219]
[1734537422294,22.354219,217.44,217.37,22.354219]
[1734537422461,22.354219,217.45,217.38,22.354219]
[1734537423444,23.503919,217.44,217.36,22.354219]
[1734537423656,22.354219,217.42,217.35,22.354219]
[1734537424150,22.354219,217.43,217.36,22.354219]
[1734537424363,22.354219,217.47,217.39,22.354219]
[1734537424597,22.354219,217.49,217.42,22.354219]
[1734537424747,24.926184,217.52,217.43,22.354219]
[1734537424748,22.354219,217.5,217.43,22.354219]
[1734537425680,22.354219,217.51,217.43,22.354219]
[1734537425853,22.354219,217.51,217.44,22.354219]
[1734537426059,23.503619,217.5,217.42,22.354219]
[1734537426266,23.776884,217.49,217.4,22.354219]
[1734537426471,22.354219,217.47,217.4,22.354219]
[1734537427168,22.354219,217.46,217.39,22.354219]
[1734537427698,22.354219,217.48,217.41,22.354219]
[1734537427988,22.354219,217.48,217.43,13.95587328]
[1734537427989,1.1495,217.48,217.43,13.95587328]
[1734537428197,13.95587328,217.5,217.43,13.95587328]
[1734537428556,13.95587328,217.51,217.43,13.95587328]
[1734537428984,13.95587328,217.51,217.44,13.95587328]
[1734537429587,15.10517328,217.51,217.43,13.95587328]
[1734537429957,13.95587328,217.5,217.42,13.95587328]
[1734537430155,15.10517328,217.51,217.43,13.95587328]
[1734537430861,4.90262363,217.54,217.46,13.95587328]
[1734537430862,13.95587328,217.53,217.46,13.95587328]
[1734537431079,14.51744058,217.54,217.47,13.95587328]
[1734537431766,0.5615673,217.54,217.47,13.95587328]
[1734537431959,0.5615673,217.54,217.49,13.95587328]
[1734537432162,0.5615673,217.54,217.48,13.95587328]
[1734537432690,14.51744058,217.54,217.46,13.95587328]
[1734537432976,14.51744058,217.54,217.45,0.12549]
[1734537432977,0.5615673,217.54,217.48,13.95587328]
[1734537433558,0.5615673,217.54,217.49,13.95587328]
[1734537433783,0.5615673,217.54,217.5,13.95587328]
[1734537434759,0.5615673,217.54,217.52,13.95587328]
[1734537435162,0.5615673,217.54,217.51,13.95587328]
[1734537435662,0.5615673,217.54,217.52,13.95587328]
[1734537436305,0.5615673,217.54,217.48,0.68946187]
[1734537436306,0.5615673,217.54,217.53,13.95587328]
[1734537436787,0.5615673,217.54,217.5,13.95587328]
[1734537437363,0.5615673,217.54,217.49,13.95587328]
[1734537437570,13.95587328,217.53,217.46,1.539]
[1734537437783,13.95587328,217.52,217.45,13.95587328]
[1734537438092,13.95587328,217.49,217.41,13.95587328]
[1734537438307,13.95587328,217.47,217.4,15.60807328]
[1734537439104,13.95587328,217.48,217.41,13.95587328]
[1734537439570,1.1495,217.49,217.42,13.95587328]
[1734537439982,1.1495,217.49,217.42,22.32731444]
[1734537440183,23.47681444,217.49,217.42,22.32731444]
[1734537440595,1.1495,217.49,217.42,22.32731444]
[1734537441102,1.1495,217.49,217.43,22.32731444]
[1734537441282,22.32731444,217.51,217.44,22.32731444]
[1734537441483,22.32731444,217.5,217.43,22.32731444]
[1734537441702,22.32731444,217.5,217.42,22.32731444]
[1734537442213,22.32731444,217.48,217.41,22.32731444]
[1734537442577,22.32731444,217.49,217.41,22.32731444]
[1734537442781,22.32731444,217.47,217.4,22.32731444]
[1734537442981,22.32731444,217.45,217.38,22.32731444]
[1734537443183,22.32731444,217.44,217.36,22.32731444]
[1734537443391,21.82731444,217.46,217.38,22.32731444]
[1734537443623,42.32731444,217.49,217.41,22.32731444]
[1734537443925,22.32731444,217.48,217.41,22.32731444]
[1734537444200,22.88888174,217.54,217.47,22.32731444]
[1734537444574,0.5615673,217.54,217.48,22.32731444]
[1734537446102,22.32731444,217.52,217.45,22.32731444]
[1734537446418,22.32731444,217.51,217.44,22.32731444]
[1734537446896,22.32731444,217.52,217.45,22.32731444]
[1734537447502,22.32731444,217.52,217.44,22.32731444]
[1734537447709,23.47661444,217.51,217.44,22.32731444]
[1734537448003,1.1493,217.51,217.44,22.32731444]
[1734537448502,1.1493,217.51,217.46,22.32731444]
[1734537449004,1.1493,217.51,217.45,22.32731444]
[1734537450202,0.5615673,217.54,217.49,22.32731444]
[1734537450384,0.5615673,217.54,217.51,22.32731444]
[1734537450796,0.5615673,217.54,217.46,2.21071114]
[1734537450797,0.5615673,217.54,217.49,22.32731444]
[1734537450994,0.5615673,217.54,217.5,22.32731444]
[1734537451610,0.5615673,217.54,217.53,22.32731444]
[1734537452175,0.5615673,217.54,217.53,22.45280444]
[1734537455704,0.5615673,217.54,217.53,22.32731444]
[1734537456708,0.5615673,217.54,217.53,22.45280444]
[1734537456926,20.0,217.65,217.53,22.45280444]
[1734537456927,7.16077107,217.75,217.58,0.12549]
[1734537457084,30.04965281,217.76,217.68,22.32731444]
[1734537457413,22.32731444,217.74,217.59,0.12549]
[1734537457733,3.4443,217.75,217.58,0.68910897]
[1734537457907,3.4443,217.75,217.6,22.32731444]
[1734537458228,22.32731444,217.67,217.6,22.32731444]
[1734537458424,22.32731444,217.68,217.61,22.32731444]
[1734537459310,22.32731444,217.68,217.6,22.32731444]
[1734537459694,22.32731444,217.67,217.6,22.32731444]
[1734537460087,22.32731444,217.68,217.6,22.32731444]
[1734537460795,22.32731444,217.66,217.58,22.32731444]
[1734537461801,22.32731444,217.66,217.59,22.32731444]
[1734537462003,15.08173395,217.67,217.59,13.93323395]
[1734537462300,13.93323395,217.66,217.58,13.93323395]
[1734537462505,13.93323395,217.66,217.59,13.93323395]
[1734537462715,13.93323395,217.66,217.58,13.93323395]
[1734537462902,13.93323395,217.66,217.59,13.93323395]
[1734537463101,27.88572963,217.73,217.56,13.93323395]
[1734537463102,13.93323395,217.63,217.56,13.93323395]
[1734537463305,13.93323395,217.62,217.55,13.93323395]
[1734537465717,15.08203395,217.61,217.54,13.93323395]
[1734537467122,13.93323395,217.63,217.56,13.93323395]
[1734537467623,15.08183395,217.65,217.58,13.93323395]
[1734537467805,1.1486,217.65,217.6,13.93323395]
[1734537468204,1.605,217.67,217.61,13.93323395]
[1734537468503,6.4898,217.71,217.64,13.93323395]
[1734537468838,2.6968,217.72,217.67,13.93323395]
[1734537469025,1.1483,217.72,217.67,13.93323395]
[1734537469211,1.1481,217.75,217.69,13.93323395]
[1734537470100,15.08133395,217.75,217.69,13.93323395]
[1734537470908,15.08133395,217.75,217.68,13.93323395]
[1734537471704,13.93323395,217.72,217.65,13.93323395]
[1734537471911,15.08143395,217.72,217.65,13.93323395]
[1734537472134,13.93323395,217.7,217.62,13.93323395]
[1734537472302,13.93323395,217.68,217.61,13.93323395]
[1734537472806,33.93323395,217.65,217.58,13.93323395]
[1734537473004,13.93323395,217.64,217.57,13.93323395]
[1734537473204,33.93323395,217.65,217.58,13.93323395]
[1734537473815,1.1486,217.65,217.58,13.93323395]
[1734537476526,13.93323395,217.64,217.57,13.93323395]
[1734537477401,15.08183395,217.65,217.58,13.93323395]
[1734537477824,1.1487,217.63,217.57,13.93323395]
[1734537478531,1.1487,217.63,217.58,13.93323395]
[1734537479921,1.1485,217.66,217.61,13.93323395]
[1734537480117,1.1485,217.66,217.62,13.93323395]
[1734537481033,1.1485,217.66,217.61,13.93323395]
[1734537482335,13.93323395,217.65,217.59,13.93323395]
[1734537482624,1.1486,217.64,217.58,13.93323395]
[1734537482834,15.08183395,217.64,217.57,13.93323395]
[1734537483132,1.1486,217.64,217.58,13.93323395]
[1734537483711,13.93323395,217.66,217.59,13.93323395]
[1734537484828,13.93323395,217.73,217.65,13.93323395]
[1734537485127,13.93323395,217.73,217.66,13.93323395]
[1734537485332,13.93323395,217.72,217.65,13.93323395]
[1734537485837,13.93323395,217.73,217.66,13.93323395]
[1734537486054,13.93323395,217.74,217.67,13.93323395]
[1734537486508,13.93323395,217.74,217.61,0.12549]
[1734537486509,13.93323395,217.73,217.66,13.93323395]
[1734537486704,1.1481,217.75,217.68,13.93323395]
[1734537486903,1.1481,217.75,217.69,13.93323395]
[1734537487139,15.08133395,217.75,217.67,13.93323395]
[1734537487710,15.08133395,217.75,217.71,13.93323395]
[1734537487711,1.1481,217.75,217.71,13.93323395]
[1734537487935,0.5615673,217.76,217.7,13.93323395]
[1734537488315,0.5615673,217.76,217.69,13.93323395]
[1734537488639,0.5615673,217.76,217.66,0.68888645]
[1734537488640,0.5615673,217.76,217.71,13.93323395]
[1734537489648,14.49480125,217.76,217.69,13.93323395]
[1734537489961,0.5615673,217.76,217.71,13.93323395]
[1734537490543,0.5615673,217.76,217.73,13.93323395]
[1734537490720,0.5615673,217.76,217.66,23.776884]
[1734537490721,0.5615673,217.76,217.75,13.93323395]
[1734537493439,0.5615673,217.76,217.75,14.05872395]
[1734537493638,0.5615673,217.76,217.75,14.74729023]